fUST/lending_fUST_20251021
["ID","MTS","AMOUNT","RATE_DAILY","PERIOD"]
[391985802,1761058235110,-655.02085835,0.00044921,3]
[391985803,1761058235123,-500.0,0.00044931,2]
[391985804,1761058235136,-500.0,0.00044931,7]
[391985805,1761058235147,-500.0,0.00044931,120]
[391985806,1761058235160,-500.0,0.00044931,30]
[391985807,1761058235174,-500.0,0.00044931,2]
[391985808,1761058235183,-500.0,0.00044931,20]
[391985809,1761058235192,-500.0,0.00044931,120]
[391985810,1761058235202,-500.0,0.00044931,7]
[391985811,1761058235211,-3498.25,0.00044931,2]
[391985812,1761058235221,-500.0,0.00044931,120]
[391985813,1761058235230,-500.0,0.00044931,30]
[391985814,1761058235240,-500.0,0.00044931,7]
[391985815,1761058235250,-500.0,0.00044931,120]
[391985816,1761058235262,-580.32,0.00044931,3]
[391985817,1761058235272,-500.0,0.00044931,120]
[391985818,1761058235281,-160.0,0.00045,90]
[391985819,1761058235291,-160.0,0.00045,60]
[391985820,1761058235301,-162.0,0.00045,45]
[391985821,1761058235310,-509.91762368,0.00045205,2]
[391985822,1761058235319,-500.0,0.00045205,7]
[391985823,1761058235329,-247.062728,0.00045205,120]
[391985824,1761058235338,-500.0,0.00045205,30]
[391985825,1761058235348,-512.33199477,0.00045205,2]
[391985826,1761058235357,-500.0,0.00045205,20]
[391985827,1761058235366,-500.0,0.00045205,120]
[391985828,1761058235376,-500.0,0.00045205,7]
[391985829,1761058235386,-3498.25,0.00045205,2]
[391985830,1761058235395,-500.0,0.00045205,120]
[391985831,1761058235405,-500.0,0.00045205,30]
[391985832,1761058235415,-500.0,0.00045205,7]
[391985833,1761058235424,-500.0,0.00045205,120]
[391985834,1761058235435,-580.32,0.00045205,3]
[391985835,1761058235444,-500.0,0.00045205,120]
[391985836,1761058235454,-519.2,0.000453,14]
[391985837,1761058235463,-159.885584,0.000453,14]
[391985838,1761058235473,-227.2,0.00045471,30]
[391985839,1761058235482,-500.0,0.00045479,7]
[391985840,1761058235493,-500.0,0.00045479,30]
[391985841,1761058235503,-500.0,0.00045479,20]
[391985842,1761058235513,-500.0,0.00045479,7]
[391985843,1761058235522,-3498.25,0.00045479,2]
[391985844,1761058235532,-500.0,0.00045479,120]
[391985845,1761058235541,-500.0,0.00045479,30]
[391985846,1761058235551,-500.0,0.00045479,7]
[391985847,1761058235561,-500.0,0.00045479,120]
[391985848,1761058235570,-580.32,0.00045479,3]
[391985849,1761058235580,-500.0,0.00045479,120]
[391985850,1761058235590,-632.0,0.00045581,2]
[391985851,1761058235600,-983.0,0.00045581,2]
[391985852,1761058235610,-2164.0,0.00045581,2]
[391985853,1761058235621,-500.0,0.00045753,7]
[391985854,1761058235631,-500.0,0.00045753,30]
[391985855,1761058235640,-500.0,0.00045753,20]
[391985856,1761058235650,-500.0,0.00045753,7]
[391985857,1761058235660,-3498.25,0.00045753,2]
[391985858,1761058235670,-500.0,0.00045753,120]
[391985859,1761058235680,-500.0,0.00045753,30]
[391985860,1761058235689,-500.0,0.00045753,7]
[391985861,1761058235698,-500.0,0.00045753,120]
[391985862,1761058235708,-580.32,0.00045753,3]
[391985863,1761058235717,-500.0,0.00045753,120]
[391985864,1761058235727,-1499.0,0.0004577,120]
[391985865,1761058235736,-500.71478119,0.00045773,10]
[391985866,1761058235746,-1499.0,0.0004578,120]
[391985867,1761058235756,-2073.51190324,0.0004579,4]
[391985868,1761058235766,-655.02085835,0.0004579,4]
[391985869,1761058235776,-1499.0,0.0004579,120]
[391985870,1761058235786,-44816.75,0.000458,30]
[391985871,1761058235796,-160.0,0.00046,120]
[391985872,1761058235805,-160.0,0.00046,120]
[391985873,1761058235815,-500.0,0.00046027,7]
[391985874,1761058235824,-500.0,0.00046027,20]
[391985875,1761058235834,-500.0,0.00046027,7]
[391985876,1761058235844,-3498.25,0.00046027,2]
[391985877,1761058235858,-500.0,0.00046027,120]
[391985878,1761058235867,-500.0,0.00046027,30]
[391985879,1761058235878,-500.0,0.00046027,7]
[391985880,1761058235888,-500.0,0.00046027,120]
[391985881,1761058235899,-580.32,0.00046027,3]
[391985882,1761058235908,-500.0,0.00046027,120]
[391985883,1761058235918,-648.869306,0.00046143,2]
[391985884,1761058236031,-2073.51190324,0.0004619,4]
[391985885,1761058236041,-655.02085835,0.0004619,4]
[391985886,1761058236051,-10000.0,0.000462,120]
[391985887,1761058236061,-159.885584,0.00046203,20]
[391985888,1761058236071,-160.688409,0.00046203,20]
[391985889,1761058236080,-500.0,0.00046301,7]
[391985890,1761058236090,-500.0,0.00046301,20]
[391985891,1761058236099,-560.37279844,0.00046301,7]
[391985892,1761058236110,-3498.25,0.00046301,2]
[391985893,1761058236119,-500.0,0.00046301,120]
[391985894,1761058236130,-500.0,0.00046301,30]
[391985895,1761058236139,-500.0,0.00046301,7]
[391985896,1761058236149,-500.0,0.00046301,120]
[391985897,1761058236158,-580.32,0.00046301,3]
[391985898,1761058236168,-500.0,0.00046301,120]
[391985899,1761058236178,-159.885584,0.00046499,60]
[391985900,1761058236188,-500.0,0.00046575,7]
[391985901,1761058236197,-500.0,0.00046575,20]
[391985902,1761058236206,-3498.25,0.00046575,2]
[391985903,1761058236216,-500.0,0.00046575,120]
[391985904,1761058236227,-500.0,0.00046575,30]
[391985905,1761058236238,-500.0,0.00046575,7]
[391985906,1761058236248,-500.0,0.00046575,120]
[391985907,1761058236261,-580.32,0.00046575,3]
[391985908,1761058236271,-500.0,0.00046575,120]
[391985909,1761058236282,-1855.48,0.0004667,2]
[391985910,1761058236292,-500.0,0.00046849,7]
[391985911,1761058236302,-500.0,0.00046849,20]
[391985912,1761058236312,-3498.25,0.00046849,2]
[391985913,1761058236323,-500.0,0.00046849,120]
[391985914,1761058236332,-500.0,0.00046849,30]
[391985915,1761058236343,-500.0,0.00046849,7]
[391985916,1761058236353,-500.0,0.00046849,120]
[391985917,1761058236363,-580.32,0.00046849,3]
[391985918,1761058236373,-500.0,0.00046849,120]
[391985919,1761058236383,-159.885584,0.00046998,60]
[391985920,1761058236394,-160.688409,0.00046998,60]
[391985921,1761058236404,-403.05172659,0.00047,7]
[391985922,1761058236414,-160.0,0.00047,120]
[391985923,1761058236424,-558.11327385,0.00047023,2]
[391985924,1761058236435,-558.11327385,0.00047117,2]
[391985925,1761058236445,-500.0,0.00047123,7]
[391985926,1761058236454,-500.0,0.00047123,20]
[391985927,1761058236463,-3498.25,0.00047123,2]
[391985928,1761058236472,-216.70625783,0.00047123,120]
[391985929,1761058236482,-500.0,0.00047123,30]
[391985930,1761058236492,-500.0,0.00047123,7]
[391985931,1761058236502,-500.0,0.00047123,120]
[391985932,1761058236513,-580.32,0.00047123,3]
[391985933,1761058236523,-500.0,0.00047123,120]
[391985934,1761058236533,-151.0,0.000472,28]
[391985935,1761058236542,-10000.0,0.000472,120]
[391985936,1761058236553,-558.11327385,0.00047211,2]
[391985937,1761058236563,-558.11327385,0.00047304,2]
[391985938,1761058236572,-2073.51190324,0.00047315,4]
[391985939,1761058236582,-655.02085835,0.00047315,4]
[391985940,1761058236592,-16588.0952259,0.00047334,4]
[391985941,1761058236602,-5240.1668668,0.00047334,4]
[391985942,1761058236611,-370000.0,0.00047344,2]
[391985943,1761058236621,-14518.00229862,0.00047344,120]
[391985944,1761058236631,-153.0,0.00047353,30]
[391985945,1761058236640,-150.0,0.00047373,10]
[391985946,1761058236649,-500.0,0.00047397,7]
[391985947,1761058236660,-500.0,0.00047397,20]
[391985948,1761058236670,-3498.25,0.00047397,2]
[391985949,1761058236679,-500.0,0.00047397,30]
[391985950,1761058236688,-500.0,0.00047397,7]
[391985951,1761058236697,-500.0,0.00047397,120]
[391985952,1761058236707,-580.32,0.00047397,3]
[391985953,1761058236716,-500.0,0.00047397,120]
[391985954,1761058236726,-5848.02398673,0.00047398,2]
[391985955,1761058236737,-558.11327385,0.00047398,2]
[391985956,1761058236749,-151.0,0.000474,21]
[391985957,1761058236762,-4913.3450641,0.0004742,2]
[391985958,1761058236776,-2073.51190324,0.00047433,4]
[391985959,1761058236785,-655.02085835,0.00047433,4]
[391985960,1761058236795,-10367.5595162,0.00047434,4]
[391985961,1761058236804,-3275.10429175,0.00047434,4]
[391985962,1761058236813,-151.0,0.00047443,30]
[391985963,1761058236823,-156.587,0.00047443,30]
[391985964,1761058236832,-162.380719,0.00047443,30]
[391985965,1761058236841,-245.03729301,0.00047443,30]
[391985966,1761058236855,-500.0,0.00047443,30]
[391985967,1761058236864,-500.0,0.00047443,30]
[391985968,1761058236873,-500.0,0.00047443,30]
[391985969,1761058236883,-414.0,0.00047443,30]
[391985970,1761058236892,-500.0,0.00047443,30]
[391985971,1761058236901,-429.318,0.00047443,30]
[391985972,1761058236910,-500.0,0.00047443,30]
[391985973,1761058236920,-500.0,0.00047443,30]
[391985974,1761058236929,-445.202766,0.00047443,30]
[391985975,1761058236938,-461.67526834,0.00047443,30]
[391985976,1761058236947,-500.0,0.00047443,30]
[391985977,1761058236957,-478.75725327,0.00047443,30]
[391985978,1761058236966,-500.0,0.00047443,30]
[391985979,1761058236976,-500.0,0.00047443,30]
[391985980,1761058236985,-496.47127164,0.00047443,30]
[391985981,1761058236995,-514.84070869,0.00047443,30]
[391985982,1761058237006,-500.0,0.00047443,30]
[391985983,1761058237015,-533.88981491,0.00047443,30]
[391985984,1761058237025,-500.0,0.00047443,30]
[391985985,1761058237034,-553.64373807,0.00047443,30]
[391985986,1761058237044,-399.82543156,0.00047443,30]
[391985987,1761058237053,-574.12855637,0.00047443,30]
[391985988,1761058237063,-595.37131296,0.00047443,30]
[391985989,1761058237072,-617.40005154,0.00047443,30]
[391985990,1761058237081,-640.24385345,0.00047443,30]
[391985991,1761058237090,-663.93287602,0.00047443,30]
[391985992,1761058237099,-688.49839244,0.00047443,30]
[391985993,1761058237108,-713.97283296,0.00047443,30]
[391985994,1761058237117,-740.38982778,0.00047443,30]
[391985995,1761058237126,-767.7842514,0.00047443,30]
[391985996,1761058237135,-796.19226871,0.00047443,30]
[391985997,1761058237145,-825.65138265,0.00047443,30]
[391985998,1761058237153,-250.0,0.00047443,30]
[391985999,1761058237163,-250.0,0.00047443,30]
[391986000,1761058237172,-250.0,0.00047443,30]
[391986001,1761058237181,-250.0,0.00047443,30]
[391986002,1761058237190,-250.0,0.00047443,30]
[391986003,1761058237199,-250.0,0.00047443,30]
[391986004,1761058237208,-1207312.67102692,0.00047444,30]
[391986005,1761058237252,-2638.70134218,0.00047444,30]
[391986021,1761058238213,-166.29442469,0.00024739,2]
[391986022,1761058238223,-1439.54370203,0.00047444,30]
[391986023,1761058238247,-870497.41522887,0.00047444,30]
[391986024,1761058238256,-151.145192,0.00047498,60]
[391986025,1761058238266,-159.885584,0.00047498,60]
[391986026,1761058238276,-160.688409,0.00047498,60]
[391986027,1761058238285,-588.89,0.000475,14]
[391986028,1761058238295,-1269.12,0.000475,14]
[391986029,1761058238305,-158.46756255,0.00047589,120]
[391986030,1761058238315,-151.0,0.000476,26]
[391986031,1761058238324,-519.2,0.000476,14]
[391986032,1761058238333,-500.0,0.00047671,7]
[391986033,1761058238342,-500.0,0.00047671,20]
[391986034,1761058238352,-3498.25,0.00047671,2]
[391986035,1761058238361,-500.0,0.00047671,30]
[391986036,1761058238371,-500.0,0.00047671,7]
[391986037,1761058238380,-500.0,0.00047671,120]
[391986038,1761058238390,-580.32,0.00047671,3]
[391986039,1761058238399,-500.0,0.00047671,120]
[391986040,1761058238408,-151.0,0.000478,28]
[391986041,1761058238417,-762.0,0.000478,30]
[391986043,1761058238427,-136774.40634251,0.000479,120]
[391986044,1761058238437,-250.0,0.00047921,10]
[391986045,1761058238446,-500.0,0.00047945,7]
[391986046,1761058238456,-500.0,0.00047945,20]
[391986047,1761058238466,-3498.25,0.00047945,2]
[391986048,1761058238475,-500.0,0.00047945,30]
[391986049,1761058238485,-500.0,0.00047945,7]
[391986050,1761058238495,-500.0,0.00047945,120]
[391986051,1761058238506,-580.32,0.00047945,3]
[391986052,1761058238515,-500.0,0.00047945,120]
[391986053,1761058238525,-4067.11001093,0.00047999,2]
[391986054,1761058238534,-403.05172659,0.00048,30]
[391986055,1761058238543,-205.808469,0.00048,2]
[391986056,1761058238552,-158.46756255,0.00048055,120]
[391986057,1761058238562,-28558.92187319,0.000481,120]
[391986058,1761058238572,-10000.0,0.000482,120]
[391986059,1761058238582,-500.0,0.00048219,7]
[391986060,1761058238591,-500.0,0.00048219,20]
[391986061,1761058238601,-3498.25,0.00048219,2]
[391986062,1761058238611,-500.0,0.00048219,30]
[391986063,1761058238621,-333.23628324,0.00048219,7]
[391986064,1761058238631,-500.0,0.00048219,120]
[391986065,1761058238643,-580.32,0.00048219,3]
[391986066,1761058238653,-500.0,0.00048219,120]
[391986067,1761058238663,-281.2,0.000483,28]
[391986068,1761058238672,-250.0,0.000483,10]
[391986069,1761058238682,-250.0,0.000484,10]
[391986070,1761058238692,-240.11853006,0.00048468,10]
[391986071,1761058238701,-500.0,0.00048493,7]
[391986072,1761058238711,-500.0,0.00048493,20]
[391986073,1761058238721,-3498.25,0.00048493,2]
[391986074,1761058238731,-500.0,0.00048493,30]
[391986075,1761058238741,-500.0,0.00048493,120]
[391986076,1761058238751,-580.32,0.00048493,3]
[391986077,1761058238763,-500.0,0.00048493,120]
[391986078,1761058238773,-250.0,0.000485,10]
[391986079,1761058238783,-158.46756255,0.00048548,120]
[391986080,1761058238792,-632.0,0.00048581,2]
[391986081,1761058238802,-983.0,0.00048581,2]
[391986082,1761058238812,-2164.0,0.00048581,2]
[391986083,1761058238821,-250.0,0.000486,10]
[391986084,1761058238832,-250.0,0.000487,10]
[391986085,1761058238841,-159.885584,0.00048746,2]
[391986086,1761058238852,-160.688409,0.00048746,2]
[391986087,1761058238865,-213.2060973,0.00048767,7]
[391986088,1761058238875,-500.0,0.00048767,20]
[391986089,1761058238885,-3498.25,0.00048767,2]
[391986090,1761058238895,-597.38074347,0.00048767,30]
[391986091,1761058238906,-500.0,0.00048767,120]
[391986092,1761058238916,-580.32,0.00048767,3]
[391986093,1761058238926,-500.0,0.00048767,120]
[391986094,1761058238937,-263082.78175457,0.000488,120]
[391986095,1761058238947,-250.0,0.000488,10]
[391986096,1761058238957,-250.0,0.000489,10]
[391986097,1761058238967,-1499.0,0.0004897,120]
[391986098,1761058238977,-1499.0,0.0004898,120]
[391986099,1761058238987,-1499.0,0.0004899,120]
[391986100,1761058238997,-1251.63503556,0.00049,60]
[391986101,1761058239008,-48100.0,0.00049,120]
[391986102,1761058239018,-311.87881253,0.00049,15]
[391986103,1761058239029,-519.2,0.00049,14]
[391986104,1761058239039,-250.0,0.00049,10]
[391986105,1761058239049,-3498.25,0.00049041,2]
[391986106,1761058239060,-500.0,0.00049041,120]
[391986107,1761058239070,-580.32,0.00049041,3]
[391986108,1761058239080,-500.0,0.00049041,120]
[391986109,1761058239090,-1269.12,0.000491,14]
[391986110,1761058239100,-250.0,0.000491,10]
[391986111,1761058239110,-500.0,0.00049136,30]
[391986112,1761058239120,-250.0,0.000492,10]
[391986113,1761058239130,-250.0,0.000493,10]
[391986114,1761058239141,-3498.25,0.00049315,2]
[391986115,1761058239152,-580.32,0.00049315,3]
[391986116,1761058239162,-9309.03101266,0.00049357,120]
[391986117,1761058239172,-250.0,0.000494,10]
[391986118,1761058239182,-200.73278272,0.00049443,60]
[391986119,1761058239192,-162.58942812,0.00049443,30]
[391986120,1761058239203,-1056797.36205963,0.00049444,30]
[391986121,1761058239215,-6379.4499,0.00049444,30]
[391986122,1761058239227,-1583.79013717,0.00049444,30]
[391986123,1761058239240,-23944.5094074,0.00049444,30]
[391986124,1761058239258,-10301.46114949,0.00049444,30]
[391986147,1761058240370,-735.05345523,0.00049444,30]
[391986148,1761058240408,-33662.85784368,0.00049444,30]
[391986149,1761058240420,-14513.58919442,0.00049444,30]
[391986150,1761058240431,-38468.5,0.00049444,30]
[391986166,1761058245123,-292.404,0.00039801,2]
[391986167,1761058245133,-150.0,0.00039801,2]
[391986168,1761058245142,-276.71826473,0.0004699,2]
[391986169,1761058245179,-2892.81463058,0.0004699,2]
[391986170,1761058245189,-1136.34,0.00049434,10]
[391986171,1761058245198,-104.67759733,0.00049444,30]
[391986172,1761058245313,-813.852,0.00049444,30]
[391986191,1761058247066,-5000.0,0.00024953,2]
[391986192,1761058247076,-1197626.33514653,0.00049444,30]
[391986193,1761058247233,-2926.02077568,0.00049444,30]
[391986194,1761058247244,-2868.359588,0.00049444,30]
[391986195,1761058247284,-1760.12418809,0.00049444,30]
[391986196,1761058254933,165.81,0.00023506,2]
[391986222,1761058339325,163.7,0.00023703,2]
[391986233,1761058423879,161.61,0.0002403,2]
[391986234,1761058506714,180.32,0.00023928,2]
[391986235,1761058590256,417.15472785,0.00024072,2]
[391986236,1761058617597,770.70574043,0.00024072,2]
[391986244,1761058837093,45100.0,0.00034924,120]
[391986245,1761058857280,150.0,0.00015267,30]
[391986246,1761058857768,232.75,0.00017812,30]
[391986247,1761058858194,349.13,0.00020356,30]
[391986248,1761058858679,465.5,0.00022901,30]
[391986257,1761058891970,-5000.0,0.00024358,2]
[391986258,1761058891995,-2120.67844895,0.00024853,2]
[391986259,1761058912495,3289.45023031,0.00025,2]
[391986260,1761058912980,4280.03911493,0.00025,2]
[391986285,1761058940158,150.0,0.00015195,30]
[391986286,1761058940672,219.69,0.00017728,30]
[391986287,1761058941153,329.53,0.0002026,30]
[391986288,1761058941599,439.38,0.00022793,30]
[391986297,1761059020796,150.0,0.00014754,30]
[391986298,1761059021788,207.27,0.00017213,30]
[391986299,1761059022257,310.9,0.00019672,30]
[391986300,1761059022710,414.53,0.00022131,30]
[391986301,1761059023279,518.17,0.00024589,30]
[391986302,1761059072217,35399.0847451,0.00034924,35]
[391986303,1761059102080,150.0,0.00014751,30]
[391986304,1761059102544,193.49,0.0001721,30]
[391986305,1761059103006,290.23,0.00019668,30]
[391986306,1761059103541,386.97,0.00022127,30]
[391986307,1761059103953,483.72,0.00024585,30]
[391986309,1761059183405,150.0,0.00013915,30]
[391986310,1761059183866,177.08,0.00016234,30]
[391986311,1761059184307,265.61,0.00018553,30]
[391986312,1761059184773,354.15,0.00020873,30]
[391986313,1761059185204,442.69,0.00023192,30]
[391986314,1761059264189,150.0,0.00014782,30]
[391986315,1761059264638,196.23,0.00017246,30]
[391986316,1761059265107,294.35,0.0001971,30]
[391986317,1761059265519,392.47,0.00022173,30]
[391986318,1761059265924,490.59,0.00024637,30]
[391986319,1761059344466,150.0,0.00014956,30]
[391986320,1761059344942,239.08,0.00017449,30]
[391986321,1761059345158,-313.0,0.00030247,14]
[391986322,1761059345184,-1714.0178396,0.00030322,2]
[391986323,1761059345205,-199.0485928,0.00030818,2]
[391986324,1761059345227,-632.30708484,0.00031357,2]
[391986325,1761059345361,358.62,0.00019942,30]
[391986326,1761059345823,478.17,0.00022435,30]
[391986327,1761059346271,597.71,0.00024927,30]
[391986328,1761059360422,775.0,0.000242,7]
[391986329,1761059383336,554.20220581,0.00025,7]
[391986330,1761059420331,-795.0475224,0.00034818,3]
[391986331,1761059420389,-250.0,0.00034818,10]
[391986332,1761059420458,-250.0,0.00034818,10]
[391986333,1761059420521,-250.0,0.00034818,10]
[391986334,1761059420584,-250.0,0.00034818,10]
[391986335,1761059420649,-250.501735,0.00034818,10]
[391986336,1761059420712,-155.0,0.00034818,2]
[391986337,1761059420777,-3074.8348785,0.00034818,2]
[391986338,1761059424896,150.0,0.00014305,30]
[391986339,1761059425300,241.91,0.00016689,30]
[391986340,1761059425734,362.86,0.00019073,30]
[391986341,1761059426195,483.82,0.00021457,30]
[391986342,1761059426680,604.77,0.00023841,30]
[391986434,1761059436326,-445.79779419,0.00025,7]
[391986435,1761059436396,-725.73,0.00026225,30]
[391986436,1761059436472,-846.68,0.00028609,30]
[391986437,1761059436544,-967.64,0.00030993,30]
[391986438,1761059436610,-160.0,0.00031342,2]
[391986439,1761059436675,-4382.69564163,0.00031357,2]
[391986440,1761059436742,-400.0,0.00031357,2]
[391986441,1761059436806,-222.0,0.00031357,3]
[391986442,1761059436877,-254.0,0.00031357,3]
[391986443,1761059436949,-205.0,0.00031357,3]
[391986449,1761059437017,-938.3085852,0.00031358,2]
[391986457,1761059437081,-154.648,0.00031358,29]
[391986458,1761059437158,-540.88665543,0.00031396,2]
[391986459,1761059437226,-500.0,0.00031473,5]
[391986460,1761059437297,-500.0,0.00031473,5]
[391986461,1761059437360,-874.0277,0.00031476,2]
[391986463,1761059437424,-543.9692854,0.00031495,120]
[391986464,1761059437490,-848.2569905,0.00031496,2]
[391986465,1761059437553,-420.0,0.0003189,2]
[391986466,1761059437613,-250.0,0.00032,7]
[391986467,1761059437678,-665.1,0.00032078,15]
[391986468,1761059437741,-300.0,0.00032125,30]
[391986469,1761059437805,-300.0,0.00032125,30]
[391986470,1761059437868,-300.0,0.00032125,30]
[391986471,1761059437946,-300.0,0.00032125,30]
[391986473,1761059438015,-300.0,0.00032125,30]
[391986474,1761059438081,-300.0,0.00032125,30]
[391986478,1761059438150,-300.0,0.00032125,30]
[391986485,1761059438218,-300.0,0.00032125,30]
[391986493,1761059438287,-300.0,0.00032125,30]
[391986499,1761059438354,-300.0,0.00032125,30]
[391986501,1761059438420,-300.0,0.00032125,30]
[391986502,1761059438488,-300.0,0.00032125,30]
[391986503,1761059438555,-300.0,0.00032125,30]
[391986505,1761059438619,-300.0,0.00032125,30]
[391986507,1761059438689,-300.0,0.00032125,30]
[391986508,1761059438761,-665.1,0.00032178,15]
[391986509,1761059438836,-665.1,0.00032278,15]
[391986510,1761059438907,-665.1,0.00032378,15]
[391986511,1761059438972,-665.1,0.00032478,15]
[391986512,1761059439034,-379.02,0.00032497,15]
[391986513,1761059439101,-665.1,0.00032578,15]
[391986514,1761059439170,-665.1,0.00032678,15]
[391986515,1761059439241,-600.0,0.00032766,30]
[391986516,1761059439318,-665.1,0.00032778,15]
[391986517,1761059439388,-665.1,0.00032878,60]
[391986518,1761059439457,-200.0,0.000329,120]
[391986519,1761059439529,-200.0,0.000329,120]
[391986520,1761059439602,-1437.46,0.00032922,2]
[391986521,1761059439679,-665.1,0.00032978,60]
[391986522,1761059439751,-665.1,0.00033078,60]
[391986523,1761059439827,-1490.3495801,0.00033081,2]
[391986524,1761059439904,-665.1,0.00033178,60]
[391986527,1761059439979,-665.1,0.00033278,60]
[391986528,1761059440051,-250.0,0.00033304,2]
[391986530,1761059440123,-1088.59,0.00033377,30]
[391986537,1761059440199,-665.1,0.00033378,60]
[391986543,1761059440274,-665.1,0.00033478,60]
[391986544,1761059440345,-665.1,0.00033578,60]
[391986545,1761059440416,-665.1,0.00033678,60]
[391986546,1761059440484,-560.0,0.00033748,2]
[391986550,1761059440553,-665.1,0.00033778,60]
[391986551,1761059440628,-665.1,0.00033878,60]
[391986552,1761059440700,-665.1,0.00033978,60]
[391986553,1761059440771,-665.1,0.00034078,60]
[391986554,1761059440842,-665.1,0.00034178,60]
[391986555,1761059440910,-1016.17175351,0.000342,120]
[391986556,1761059440975,-319.09425956,0.000342,120]
[391986557,1761059441038,-169.98413699,0.000342,120]
[391986558,1761059441099,-242.628741,0.000342,120]
[391986559,1761059441163,-214.32005645,0.000342,120]
[391986560,1761059441231,-181.09763267,0.000342,120]
[391986561,1761059441298,-188.27459274,0.000342,120]
[391986562,1761059441374,-257.97905682,0.000342,120]
[391986563,1761059441440,-192.76534299,0.000342,120]
[391986564,1761059441506,-665.1,0.00034278,60]
[391986565,1761059441579,-665.1,0.00034378,60]
[391986566,1761059441648,-665.1,0.00034478,60]
[391986567,1761059441716,-178.51069595,0.00034573,7]
[391986568,1761059441779,-500.0,0.00034573,7]
[391986569,1761059441843,-500.0,0.00034573,7]
[391986570,1761059441904,-194.86981233,0.00034573,7]
[391986571,1761059441966,-323.98079969,0.00034573,7]
[391986572,1761059442028,-10513.0,0.00034574,2]
[391986573,1761059442094,-1860.04633139,0.00034575,2]
[391986574,1761059442173,-665.1,0.00034578,60]
[391986575,1761059442240,-999.23,0.00034655,3]
[391986576,1761059442302,-499.61,0.00034655,3]
[391986577,1761059442364,-249.81,0.00034655,3]
[391986578,1761059442428,-749.44,0.00034655,3]
[391986579,1761059442496,-3195.59,0.00034655,10]
[391986580,1761059442561,-2662.99,0.00034655,10]
[391986581,1761059442621,-2219.16,0.00034655,10]
[391986582,1761059442679,-2999.0,0.00034664,120]
[391986583,1761059442734,-254.14068666,0.00034665,2]
[391986584,1761059442796,-86679.9581928,0.00034665,2]
[391986585,1761059442865,-572.63994276,0.00034673,5]
[391986586,1761059442927,-500.0,0.00034673,5]
[391986587,1761059442989,-500.0,0.00034673,4]
[391986588,1761059443052,-500.0,0.00034673,5]
[391986589,1761059443113,-500.0,0.00034673,5]
[391986590,1761059443178,-188.2921001,0.00034674,7]
[391986591,1761059443384,-1437.46,0.00034674,2]
[391986592,1761059443452,-1437.46,0.00034674,2]
[391986593,1761059443510,-1437.46,0.00034674,2]
[391986594,1761059443572,-1437.46,0.00034674,2]
[391986595,1761059443629,-1437.46,0.00034674,2]
[391986596,1761059443687,-1437.46,0.00034674,2]
[391986597,1761059443754,-1437.46,0.00034674,2]
[391986601,1761059443817,-1437.46,0.00034674,2]
[391986606,1761059443884,-1437.46,0.00034674,2]
[391986609,1761059443946,-1437.46,0.00034674,2]
[391986611,1761059444009,-1437.46,0.00034674,2]